bitfinex-derivatives/quotes_ETHF0:USTF0_20240907
["timestamp","ask_amount","ask_price","bid_price","bid_amount"]
[1725687435339,3.2078,2262.7,2262.3,0.80843]
[1725687435542,0.44209,2262.6,2262.3,0.80843]
[1725687435945,3.2078,2262.7,2262.3,0.3663]
[1725687436136,3.64981,2263.0,2262.7,0.44205]
[1725687436331,3.64981,2263.0,2262.4,4.42]
[1725687436332,4.4778,2263.0,2262.8,0.83413]
[1725687436633,4.4778,2263.0,2262.9,0.3946]
[1725687437039,1.27,2263.0,2262.9,0.3946]
[1725687437949,3.50199,2263.1,2262.9,0.3946]
[1725687438145,6.70979,2263.1,2262.9,0.3946]
[1725687438645,6.2678,2263.1,2262.9,0.3946]
[1725687439051,6.2678,2263.1,2262.9,0.83662]
[1725687439251,6.70978,2263.1,2262.9,0.3946]
[1725687439947,6.70978,2263.1,2262.9,0.83662]
[1725687440144,6.70978,2263.1,2262.9,0.3946]
[1725687440648,0.442,2263.0,2262.9,0.3946]
[1725687441038,0.442,2263.0,2262.8,0.83414]
[1725687441239,0.442,2263.0,2262.8,0.3921]
[1725687441443,0.442,2263.0,2262.8,0.83413]
[1725687441650,6.2678,2263.1,2262.8,0.83413]
[1725687441651,6.70979,2263.1,2262.8,0.83413]
[1725687442747,0.44202,2262.9,2262.8,0.3921]
[1725687443453,0.44201,2263.0,2262.8,0.3921]
[1725687443652,0.442,2263.0,2262.6,0.3903]
[1725687443850,0.442,2263.0,2262.7,0.44205]
[1725687446051,6.70979,2263.1,2262.8,0.44204]
[1725687446454,6.70979,2263.1,2262.7,0.44204]
[1725687447355,6.2678,2263.1,2262.8,0.44203]
[1725687447556,3.2078,2263.1,2262.9,0.44201]
[1725687447851,3.64978,2263.1,2263.0,0.759]
[1725687451351,6.65397561,2263.5,2263.0,11.1782]
[1725687451566,0.3872,2263.6,2263.5,0.4419]
[1725687451859,6.50617561,2263.9,2263.1,1.47873]
[1725687451860,3.50182,2263.9,2263.6,0.44187]
[1725687452261,0.3872,2264.0,2263.4,0.3986]
[1725687452458,3.6017,2264.1,2263.8,0.44183]
[1725687452761,0.3872,2264.3,2263.6,6.2678]
[1725687452946,0.44174,2264.3,2263.9,0.44181]
[1725687453153,0.44174,2264.3,2264.0,0.3986]
[1725687453352,3.50174,2264.4,2264.0,0.3986]
[1725687453556,0.44174,2264.3,2264.0,0.3986]
[1725687453767,3.50174,2264.4,2264.0,0.3986]
[1725687453955,0.44174,2264.3,2264.0,0.3986]
[1725687454353,3.50174,2264.4,2264.0,0.3986]
[1725687454663,0.44175,2264.3,2264.0,0.3986]
[1725687454856,3.2078,2264.2,2264.0,0.3986]
[1725687455763,0.44179,2264.1,2263.7,0.81565]
[1725687456058,4.38637,2264.2,2263.7,1.20315]
[1725687456466,0.44178,2264.1,2263.7,1.20315]
[1725687456667,4.38638,2264.2,2263.7,1.20315]
[1725687456969,4.38638,2264.2,2263.8,0.44184]
[1725687457659,0.44179,2264.1,2263.7,1.20315]
[1725687458061,4.38637,2264.2,2263.8,0.44184]
[1725687458757,0.44178,2264.1,2263.7,1.20315]
[1725687460063,4.38637,2264.2,2263.8,0.44184]
[1725687460563,0.44178,2264.1,2263.7,1.20314]
[1725687461659,4.38638,2264.2,2263.7,1.20314]
[1725687462052,4.38638,2264.2,2263.8,0.44184]
[1725687462659,0.44178,2264.1,2263.7,1.20315]
[1725687463667,1.17857,2264.2,2263.8,0.44183]
[1725687465562,1.17857,2264.2,2263.9,0.44182]
[1725687465769,0.80547,2264.2,2264.0,0.3829]
[1725687465973,3.64955,2264.3,2264.0,0.8247]
[1725687466869,0.44177,2264.2,2264.0,0.3829]
[1725687467264,0.44175,2264.3,2264.0,0.3829]
[1725687467566,3.64955,2264.3,2264.0,0.3829]
[1725687468465,0.44176,2264.2,2264.0,0.3829]
[1725687468772,1.10433,2264.4,2263.8,3.64963]
[1725687469070,1.10433,2264.4,2263.9,0.3804]
[1725687469658,0.44178,2264.2,2263.9,0.3804]
[1725687470468,0.44178,2264.1,2263.9,0.3804]
[1725687471462,0.44177,2264.2,2263.9,0.82222]
[1725687471657,0.7921,2264.5,2263.9,0.3804]
[1725687471658,0.44175,2264.3,2263.9,0.3804]
[1725687472070,0.44175,2264.3,2263.9,0.82221]
[1725687474367,0.44175,2264.3,2264.0,0.4418]
[1725687475665,0.44175,2264.3,2263.9,0.3804]
[1725687475666,3.2078,2264.3,2263.9,0.3804]
[1725687475974,4.31219,2264.3,2263.9,0.3804]
[1725687476273,0.44176,2264.2,2263.9,0.3804]
[1725687476464,0.44176,2264.2,2263.9,0.82222]
[1725687476661,3.64956,2264.3,2264.0,0.44179]
[1725687476862,3.2078,2264.3,2263.9,0.82221]
[1725687477066,0.44176,2264.2,2263.9,0.82221]
[1725687480472,4.31219,2264.3,2263.9,0.3804]
[1725687480668,0.8119,2264.1,2263.9,0.3804]
[1725687482072,0.4418,2264.1,2263.9,0.3804]
[1725687482773,0.4418,2264.1,2263.9,0.82222]
[1725687483568,1.10439,2264.3,2263.9,0.82222]
[1725687483970,0.44179,2264.1,2263.9,0.82222]
[1725687484170,0.44179,2264.1,2263.9,0.3804]
[1725687484473,0.44177,2264.2,2264.0,0.44179]
[1725687484773,0.44177,2264.2,2264.1,0.3629]
[1725687485377,0.44177,2264.2,2264.1,0.7601]
[1725687485775,0.44175,2264.3,2264.1,0.7601]
[1725687486169,0.44175,2264.3,2264.1,1.20188]
[1725687486474,0.44176,2264.2,2264.1,0.7601]
[1725687486677,0.44175,2264.3,2264.1,0.7601]
[1725687488279,0.44175,2264.3,2264.1,1.20188]
[1725687491473,0.44175,2264.3,2264.1,2.47188]
[1725687492268,1.5005,2264.5,2264.1,0.7601]
[1725687492475,0.44176,2264.2,2264.1,0.3972]
[1725687493990,0.44175,2264.3,2264.1,0.3972]
[1725687494176,0.44175,2264.3,2264.1,0.83898]
[1725687494676,0.44175,2264.3,2264.2,0.3856]
[1725687499481,0.44174,2264.3,2264.2,0.3856]
[1725687500585,1.54617,2264.2,2264.1,1.13878949]
[1725687500786,0.44181,2264.0,2263.8,1.49988949]
[1725687501583,1.2023,2264.1,2263.8,1.94172949]
[1725687501889,0.4418,2264.0,2263.8,1.49988949]
[1725687502083,0.44184,2263.8,2263.7,1.70818423]
[1725687502286,0.7605,2264.1,2263.7,1.13998475]
[1725687502287,0.44183,2263.9,2263.7,1.13998475]
[1725687502477,1.86498,2264.1,2263.8,1.27]
[1725687502677,0.44181,2264.0,2263.8,1.27]
[1725687502888,0.7605,2264.1,2263.8,1.27]
[1725687502889,3.2078,2264.3,2263.8,1.71182]
[1725687503183,0.44179,2264.1,2264.0,1.27]
[1725687504493,0.44178,2264.1,2264.0,1.27]
[1725687505993,0.44178,2264.1,2264.0,1.6329]
[1725687509590,0.44178,2264.2,2264.0,1.6329]
[1725687509887,0.44178,2264.1,2264.0,1.6329]
[1725687512485,0.44177,2264.2,2264.0,1.6329]
[1725687512888,0.44177,2264.2,2264.0,2.0747]
[1725687513492,0.44177,2264.2,2264.0,1.6329]
[1725687513692,0.44177,2264.2,2264.0,2.0747]
[1725687513894,3.64956,2264.3,2264.0,2.0747]
[1725687514192,0.44176,2264.2,2264.0,1.6329]
[1725687514493,1.10434,2264.4,2264.0,1.6329]
[1725687514792,0.44177,2264.2,2264.0,1.6329]
[1725687516386,3.64956,2264.3,2264.0,2.0747]
[1725687516691,0.44176,2264.2,2264.0,2.0747]
[1725687516986,0.44178,2264.1,2264.0,0.3629]
[1725687517191,0.44178,2264.2,2264.0,0.3629]
[1725687517394,0.44178,2264.1,2264.0,0.3629]
[1725687521890,0.44182,2263.9,2263.6,1.58186475]
[1725687522190,0.44184,2263.9,2263.7,1.639]
[1725687523292,0.44181,2264.0,2263.8,0.44183]
[1725687523497,0.44181,2264.0,2263.7,3.22083475]
[1725687523691,0.44181,2264.0,2263.7,2.08085]
[1725687523900,0.44181,2264.0,2263.8,0.44184]
[1725687524692,0.44181,2264.0,2263.7,2.08085]
[1725687524998,0.44181,2264.0,2263.7,3.22083475]
[1725687525198,0.44181,2264.0,2263.8,0.44184]
[1725687525496,0.44181,2264.0,2263.7,2.08085]
[1725687526795,0.44183,2263.9,2263.7,2.08085]
[1725687526991,0.44183,2263.9,2263.7,1.639]
[1725687527899,0.44181,2264.0,2263.7,2.08086]
[1725687528499,0.44182,2263.9,2263.7,1.639]
[1725687528797,0.44181,2264.0,2263.7,2.08085]
[1725687529601,0.44177,2264.2,2263.7,4.8468]
[1725687529797,3.44617561,2264.4,2263.9,0.44182]
[1725687529994,0.44174,2264.3,2264.0,2.4796]
[1725687530399,0.44174,2264.3,2264.1,0.392]
[1725687530701,0.44176,2264.2,2264.1,0.392]
[1725687531702,0.44176,2264.3,2264.1,0.392]
[1725687531893,0.44176,2264.2,2264.1,0.392]
[1725687532804,0.44178,2264.1,2264.0,0.7678]
[1725687536011,0.44178,2264.2,2264.0,0.7678]
[1725687536909,0.44178,2264.1,2264.0,0.7678]
[1725687541319,4.3122,2264.3,2264.0,0.7678]
[1725687541320,3.64956,2264.3,2264.0,1.2096]
[1725687541820,0.44178,2264.1,2264.0,0.7678]
[1725687547820,0.44178,2264.2,2264.0,0.7678]
[1725687548313,0.44178,2264.1,2264.0,0.7678]
[1725687548512,0.44179,2264.1,2263.9,0.3922]
[1725687548708,0.44179,2264.1,2263.9,1.1546]
[1725687548910,0.44178,2264.2,2263.9,1.1546]
[1725687549415,0.44178,2264.2,2263.9,2.29458475]
[1725687552314,3.2078,2264.3,2264.0,0.44179]
[1725687552512,3.2078,2264.3,2264.0,1.58177475]
[1725687553217,0.44174,2264.4,2264.0,1.58177475]
[1725687553617,0.44174,2264.4,2264.1,0.44178]
[1725687554018,0.44174,2264.4,2264.2,0.3624]
[1725687554219,0.44174,2264.4,2264.3,0.3666]
[1725687554517,4.85774,2264.4,2264.3,0.3666]
[1725687554720,4.85772,2264.4,2264.3,0.3666]
[1725687555625,4.416,2264.4,2264.3,0.3666]
[1725687562129,0.83792,2264.5,2264.3,0.3666]
[1725687562437,0.3962,2264.5,2264.3,0.7337]
[1725687562826,0.8379,2264.5,2264.3,0.7337]
[1725687563138,0.3962,2264.5,2264.3,0.7337]
[1725687563335,0.8379,2264.5,2264.3,0.7337]
[1725687563930,0.3962,2264.5,2264.3,0.7337]
[1725687565828,0.44169,2264.6,2264.3,0.7337]
[1725687566035,0.44168,2264.7,2264.3,0.7337]
[1725687567224,0.44168,2264.7,2264.3,1.17544]
[1725687567434,0.44169,2264.6,2264.3,0.7337]
[1725687568436,0.83309,2264.6,2264.3,0.7337]
[1725687568630,0.4417,2264.5,2264.3,0.3666]
[1725687568832,0.44177,2264.2,2263.8,0.44183]
[1725687569036,0.44177,2264.2,2263.9,0.7679]
[1725687570031,0.44179,2264.1,2263.9,0.7679]
[1725687570232,0.44178,2264.2,2263.9,0.7679]
[1725687570831,0.3804,2264.3,2263.9,0.7679]
[1725687571140,0.44178,2264.1,2263.9,0.7679]
[1725687571339,0.44178,2264.2,2263.9,0.7679]
[1725687571535,0.44178,2264.1,2263.9,0.7679]
[1725687576329,0.44178,2264.2,2263.9,0.7679]
[1725687577440,0.44178,2264.1,2263.9,0.7679]
[1725687579345,3.64953,2264.4,2264.0,0.44178]
[1725687579546,3.64953,2264.4,2264.1,0.44178]
[1725687579939,3.64953,2264.4,2264.2,0.3786]
[1725687581744,0.44173,2264.4,2264.2,0.3786]
[1725687581940,1.20132,2264.5,2264.2,0.3786]
[1725687582141,0.82892,2264.5,2264.3,0.7807]
[1725687584147,0.44174,2264.4,2264.2,0.3786]
[1725687584345,0.81514,2264.4,2264.2,0.3786]
[1725687584940,0.44174,2264.3,2264.2,0.3786]
[1725687588343,4.02293,2264.4,2264.2,0.3786]
[1725687589046,0.44173,2264.4,2264.2,0.3786]
[1725687589549,3.64953,2264.4,2264.2,0.3786]
[1725687589744,3.2078,2264.4,2264.2,0.3786]
[1725687590449,0.44173,2264.4,2264.2,0.3786]
[1725687591044,3.64953,2264.4,2264.2,0.3786]
[1725687591950,0.44173,2264.4,2264.2,0.3786]
[1725687592451,3.64953,2264.4,2264.2,0.3786]
[1725687592658,0.44173,2264.4,2264.2,0.3786]
[1725687593753,0.4417,2264.5,2264.2,0.82036]
[1725687594053,0.4417,2264.5,2264.2,0.3786]
[1725687594454,1.27,2264.3,2264.2,0.3786]
[1725687594752,1.27,2264.3,2264.0,0.7386]
[1725687594956,0.81217,2264.2,2264.0,1.1117]
[1725687595151,0.44177,2264.2,2264.0,1.1117]
[1725687595343,0.44178,2264.1,2264.0,1.1117]
[1725687596044,0.44177,2264.2,2264.0,1.1117]
[1725687596952,0.81215,2264.3,2264.0,1.1117]
[1725687597248,3.9583,2264.4,2264.0,1.1117]
[1725687597249,3.64953,2264.4,2264.0,1.55348]
[1725687597751,3.64953,2264.4,2264.1,0.44178]
[1725687597952,3.2078,2264.4,2264.1,0.44178]
[1725687598149,0.44172,2264.5,2264.0,2.3817]
[1725687598355,0.44171,2264.5,2264.2,0.44175]
[1725687598854,0.44171,2264.5,2264.3,0.3944]
[1725687599066,0.44171,2264.5,2264.4,0.3624]
[1725687599550,0.44171,2264.5,2264.4,0.7565]
[1725687601354,0.8171,2264.6,2264.4,0.7565]
[1725687601949,0.4417,2264.5,2264.4,0.7565]
[1725687602256,4.31195,2264.8,2264.4,0.7565]
[1725687602257,0.44169,2264.6,2264.4,0.7565]
[1725687605557,0.3714,2264.7,2264.4,0.7565]
[1725687605558,0.4417,2264.5,2264.4,0.7565]
[1725687607559,0.8284,2264.6,2264.4,0.7565]
[1725687607958,0.4417,2264.5,2264.4,0.7565]
[1725687608753,0.44172,2264.4,2264.3,0.3944]
[1725687609154,0.80912,2264.4,2264.3,0.3944]
[1725687609556,0.44172,2264.4,2264.1,0.7574]
[1725687609754,0.44172,2264.4,2264.2,0.3709]
[1725687613857,0.44174,2264.3,2264.2,0.3709]
[1725687614462,0.44179,2264.1,2263.8,1.13998475]
[1725687614655,0.44179,2264.1,2264.0,0.3989]
[1725687618258,0.4418,2264.0,2263.9,0.7472]
[1725687618566,0.44179,2264.1,2263.9,0.7472]
[1725687618963,0.4418,2264.0,2263.9,0.7472]
[1725687619761,1.54631,2264.0,2263.9,0.7472]
[1725687619963,0.44185,2263.8,2263.5,2.85187475]
[1725687620261,0.44185,2263.8,2263.6,0.7649]
[1725687620963,0.3781,2263.9,2263.6,0.7649]
[1725687620964,0.81994,2263.9,2263.6,0.7649]
[1725687621171,0.44184,2263.8,2263.6,0.7649]
[1725687621470,0.81994,2263.9,2263.6,0.7649]
[1725687621763,0.44184,2263.9,2263.6,1.20678]
[1725687623268,0.44184,2263.8,2263.6,1.20678]
[1725687624166,0.44183,2263.9,2263.6,1.20678]
[1725687624670,0.44186,2263.7,2263.6,0.7649]
[1725687625265,3.582,2264.2,2263.6,0.7649]
[1725687625471,0.36,2264.4,2263.8,1.27]
[1725687625774,0.44175,2264.3,2264.0,0.44179]
[1725687625964,0.44175,2264.3,2264.1,0.7519]
[1725687626366,0.44174,2264.4,2264.1,1.19367]
[1725687626568,3.2078,2264.5,2264.1,0.7519]
[1725687626864,3.64951,2264.5,2264.2,0.44175]
[1725687627171,3.64951,2264.5,2264.3,0.3634]
[1725687627565,3.64951,2264.5,2264.4,0.3652]
[1725687629575,3.2078,2264.5,2264.4,0.3652]
[1725687631077,3.64949,2264.6,2264.4,0.3652]
[1725687632177,0.4417,2264.5,2264.4,0.3652]
[1725687632584,3.6495,2264.6,2264.4,0.3652]
[1725687635480,3.6495,2264.6,2264.5,0.3744]
[1725687636378,0.4417,2264.6,2264.5,0.3744]
[1725687637376,3.6495,2264.6,2264.5,0.3744]
[1725687637884,0.4417,2264.6,2264.5,0.3744]
[1725687645191,0.80618,2264.7,2264.5,0.3744]
[1725687645390,1.02614858,2265.2,2264.7,1.10417]
[1725687645583,3.44617561,2266.0,2265.9,0.44143]
[1725687645783,0.3607,2266.3,2265.9,1.71143]
[1725687645980,0.7396,2266.3,2266.1,1.27]
[1725687646179,0.66365891,2266.6,2266.1,1.71138]
[1725687646383,0.44132,2266.5,2266.1,1.27]
[1725687647598,0.22234891,2266.6,2266.1,1.27]
[1725687647784,0.44132,2266.5,2266.1,1.27]
[1725687647989,0.44132,2266.5,2265.9,6.69922]
[1725687648591,0.44132,2266.5,2266.0,0.44141]
[1725687649392,0.44132,2266.5,2266.0,0.83761]
[1725687649783,0.66365891,2266.6,2266.0,0.83761]
[1725687649987,0.66365891,2266.6,2266.0,1.20961]
[1725687651196,0.44146,2265.8,2265.3,0.3849]
[1725687651402,1.10352,2266.1,2265.3,3.87644]
[1725687651598,0.44145,2265.9,2265.3,3.87644]
[1725687651896,0.44145,2265.9,2265.4,0.44153]
[1725687653791,0.44145,2265.9,2265.4,3.64933]
[1725687654702,0.44145,2265.8,2265.4,3.64933]
[1725687656004,0.44144,2265.9,2265.4,3.64933]
[1725687656703,0.44144,2265.9,2265.5,0.4415]
[1725687656899,0.44144,2265.9,2265.4,3.64932]
[1725687657502,3.9418,2266.0,2265.2,0.3718]
[1725687657503,6.9918,2266.0,2265.2,0.3718]
[1725687657707,0.4415,2265.6,2265.2,0.81336]
[1725687660798,0.44151,2265.5,2265.2,0.81336]
[1725687661198,0.4415,2265.6,2265.3,0.44154]
[1725687661597,0.4415,2265.6,2265.2,0.81336]
[1725687661804,1.10359,2265.9,2265.2,0.81336]
[1725687662306,0.44151,2265.5,2265.2,0.3718]
[1725687662510,0.44162,2265.0,2264.6,0.83167]
[1725687662709,0.44164,2264.9,2264.6,0.39]
[1725687663111,0.44164,2264.9,2264.6,0.83168]
[1725687663315,0.44162,2265.0,2264.6,0.83168]
[1725687663508,0.4416,2265.1,2264.6,0.39]
[1725687663813,0.4416,2265.1,2264.7,0.44165]
[1725687665111,3.64936,2265.3,2264.9,0.44161]
[1725687665311,0.44157,2265.2,2265.0,0.7641]
[1725687665614,0.44159,2265.1,2265.0,0.7641]
[1725687666102,0.44158,2265.2,2265.0,0.7641]
[1725687667809,0.44161,2265.0,2264.7,3.2078]
[1725687668115,0.44161,2265.0,2264.7,3.5924]
[1725687668509,0.44161,2265.0,2264.7,4.03406]
[1725687668703,0.4416,2265.1,2264.7,4.03406]
[1725687669111,0.4416,2265.1,2264.8,0.44164]
[1725687669300,0.4416,2265.1,2264.7,0.82625]
[1725687669501,0.4416,2265.1,2264.8,0.44164]
[1725687670514,0.44158,2265.2,2264.8,0.44164]
[1725687670707,0.44159,2265.1,2264.8,0.44164]
[1725687681216,0.44158,2265.2,2264.9,0.44162]
[1725687681417,0.44158,2265.2,2265.0,0.3782]
[1725687681617,0.44156,2265.3,2265.0,0.8198]
[1725687681913,0.44152,2265.5,2265.2,0.44156]
[1725687683218,0.4415,2265.6,2265.1,0.749]
[1725687683408,0.4415,2265.6,2265.3,0.44154]
[1725687685820,0.44151,2265.5,2265.3,0.44154]
[1725687686018,0.4415,2265.6,2265.3,0.44154]
[1725687686329,0.4415,2265.6,2264.9,1.10405]
[1725687686330,1.10393,2265.2,2264.7,3.2078]
[1725687686620,0.44169,2264.6,2264.4,0.3753]
[1725687687128,0.44168,2264.7,2264.4,0.3753]
[1725687688213,7.37997561,2265.1,2264.4,0.3753]
[1725687688214,0.44166,2264.8,2264.4,0.3753]
[1725687688417,7.37997561,2265.1,2264.4,0.3753]
[1725687688625,3.9338,2265.1,2264.4,4.02481]
[1725687689126,0.44166,2264.8,2264.4,3.5831]
[1725687692223,0.44164,2264.9,2264.4,4.02481]
[1725687692524,3.9338,2265.1,2264.4,3.5831]
[1725687692824,0.44167,2264.7,2264.4,3.5831]
[1725687693419,0.4417,2264.6,2264.4,3.5831]
[1725687695024,0.4417,2264.5,2264.4,0.3753]
[1725687695825,0.44169,2264.6,2264.4,0.3753]
[1725687697729,1.10415,2264.8,2264.4,0.3753]
[1725687697730,0.4417,2264.5,2264.4,0.3753]
[1725687698227,0.4417,2264.5,2264.4,4.7913]
[1725687701824,0.4417,2264.5,2264.4,0.3753]
[1725687702733,0.44172,2264.4,2264.3,0.3663]
[1725687703831,0.44171,2264.5,2264.3,0.3663]
[1725687704028,0.44172,2264.4,2264.3,0.3663]
[1725687712526,1.27,2264.7,2264.3,0.3663]
[1725687712741,5.08715,2264.8,2264.3,0.80803]
[1725687713132,0.44171,2264.5,2264.3,0.80803]
[1725687715334,1.10419,2264.7,2264.3,0.3663]
[1725687715335,0.44172,2264.4,2264.3,0.3663]
[1725687716035,0.44172,2264.4,2264.3,0.80804]
[1725687717138,0.44172,2264.4,2264.3,0.3663]
[1725687728051,1.10423,2264.6,2264.3,0.3663]
[1725687728258,0.44172,2264.4,2264.3,0.3663]
[1725687728555,4.4778,2264.4,2263.7,1.13610316]
[1725687728755,0.44186,2263.7,2263.6,1.1579]
[1725687730058,0.44186,2263.7,2263.6,0.7697]
[1725687730554,0.4419,2263.5,2263.4,0.3882]
[1725687730755,0.4419,2263.5,2263.4,1.1593]
[1725687731156,0.44189,2263.6,2263.4,1.1593]
[1725687731949,3.2078,2263.8,2263.4,1.1593]
[1725687732148,0.4419,2263.5,2263.4,1.1593]
[1725687732553,0.44189,2263.6,2263.4,1.1593]
[1725687733460,3.2078,2263.8,2263.4,1.1593]
[1725687733650,3.2078,2263.8,2263.1,4.34390316]
[1725687733651,1.27,2263.6,2263.1,4.34390316]
[1725687733858,0.44199,2263.1,2262.9,1.13610316]
[1725687734159,0.442,2263.0,2262.9,0.374]
[1725687734352,2.3748,2263.4,2262.9,4.7932]
[1725687734548,0.44199,2263.1,2262.9,0.374]
[1725687734749,0.442,2263.0,2262.9,0.374]
[1725687734952,2.59853085,2263.4,2262.9,0.374]
[1725687735550,0.44198,2263.1,2262.9,0.374]
[1725687735948,0.44198,2263.1,2262.9,4.7932]
[1725687736150,0.44198,2263.1,2262.9,0.374]
[1725687736151,0.442,2263.0,2262.9,0.374]
[1725687736460,0.44202,2262.9,2262.8,0.7472]
[1725687745159,0.44204,2262.8,2262.6,0.3958]
[1725687745364,0.44204,2262.8,2262.6,1.1796]
[1725687745958,0.44203,2262.9,2262.6,1.1796]
[1725687746158,3.2078,2263.2,2262.6,1.1796]
[1725687746364,10.81870561,2263.6,2262.8,3.06]
[1725687746560,0.44191,2263.5,2262.8,6.2678]
[1725687746761,0.44192,2263.4,2263.0,0.44199]
[1725687746962,0.44194,2263.3,2263.1,1.1235]
[1725687747268,0.44191,2263.5,2263.1,1.56548]
[1725687747763,0.44191,2263.5,2263.2,0.44196]
[1725687748169,0.44191,2263.5,2263.1,1.1235]
[1725687748170,4.21007561,2263.8,2263.1,1.1235]
[1725687748463,0.44189,2263.6,2263.2,0.44196]
[1725687748669,3.64969,2263.6,2263.2,0.44196]
[1725687750465,3.2078,2263.6,2263.1,4.3313]
[1725687750665,3.2078,2263.6,2263.3,0.44193]
[1725687751471,3.64969,2263.6,2263.2,0.44195]
[1725687751858,3.64969,2263.6,2263.3,0.44193]
[1725687752670,3.2078,2263.6,2263.3,0.44193]
[1725687753262,3.2078,2263.6,2263.2,0.44195]
[1725687753463,3.2078,2263.6,2263.3,0.44194]
[1725687753669,3.2078,2263.6,2263.1,4.3313]
[1725687753865,3.2078,2263.6,2263.3,0.44192]
[1725687754271,3.2078,2263.6,2263.4,0.44192]
[1725687754469,3.64968,2263.6,2263.5,0.3666]
[1725687754774,1.54666,2263.5,2263.1,3.5729]
[1725687754966,4.31265,2263.3,2262.8,0.765]
[1725687755170,4.31265,2263.3,2262.8,1.1351]
[1725687755171,0.44202,2262.9,2262.8,1.1351]
[1725687755471,0.44202,2262.9,2262.2,3.2078]
[1725687755472,1.10505,2262.9,2262.2,3.2078]
[1725687755665,0.44208,2262.6,2262.4,1.1351]
[1725687756375,0.44207,2262.7,2262.4,1.57721]
[1725687756666,0.44208,2262.6,2262.4,1.57721]
[1725687757263,0.44207,2262.7,2262.4,1.57721]
[1725687760276,0.44208,2262.6,2262.4,1.57721]
[1725687760668,0.44207,2262.7,2262.5,0.44209]
[1725687761770,0.44207,2262.7,2262.4,1.5772]
[1725687763771,0.44205,2262.8,2262.5,0.44209]
[1725687764878,0.44206,2262.7,2262.5,0.44209]
[1725687766075,0.44206,2262.7,2262.4,1.1351]
[1725687766076,0.44208,2262.6,2262.4,1.5772]
[1725687767675,0.44208,2262.6,2262.4,1.57721]
[1725687779690,0.44209,2262.5,2262.4,1.1351]
[1725687780090,1.27,2262.6,2262.3,1.13575381]
[1725687780394,1.27,2262.6,2262.2,0.3846]
[1725687780395,0.44213,2262.3,2262.2,0.3846]
[1725687780893,0.44215,2262.2,2262.1,0.7684]
[1725687781390,0.44215,2262.2,2262.0,0.3846]
[1725687781589,0.44215,2262.2,2262.0,0.82679]
[1725687782089,1.71215,2262.3,2262.0,0.82679]
[1725687782299,0.44216,2262.2,2262.0,0.3846]
[1725687782680,1.71215,2262.3,2262.0,0.82679]
[1725687785997,1.71215,2262.3,2262.1,0.44217]
[1725687789319,0.361,2262.6,2262.4,0.44211]
[1725687789514,0.3987,2262.8,2262.5,0.776]
[1725687789813,1.27,2262.7,2262.5,0.776]
[1725687791118,0.44207,2262.6,2262.5,0.776]
[1725687795818,0.3987,2262.8,2262.5,1.21808]
[1725687796118,0.3987,2262.8,2262.5,0.776]
[1725687796119,2.11074,2262.8,2262.5,0.776]
[1725687796314,2.11074,2262.8,2262.6,0.83407]
[1725687796514,2.11074,2262.8,2262.6,0.392]
[1725687799122,0.84074,2262.8,2262.6,0.83407]
[1725687799323,2.11074,2262.8,2262.6,0.392]
[1725687800224,0.44206,2262.7,2262.4,0.4421]
[1725687800427,1.27,2262.6,2262.5,0.44209]
[1725687800726,1.27,2262.6,2262.4,1.5791]
[1725687800922,1.27,2262.6,2262.5,0.44209]
[1725687801323,0.3744,2263.1,2262.5,7.6278]
[1725687801526,5.09977561,2263.3,2262.8,0.44202]
[1725687801729,0.44198,2263.1,2262.9,0.7523]
[1725687802031,0.44197,2263.2,2262.9,1.56791]
[1725687802417,0.44198,2263.1,2262.9,1.1259]
[1725687802819,0.44197,2263.2,2262.9,1.1259]
[1725687804427,0.44198,2263.1,2262.9,1.1259]
[1725687805332,1.6536,2263.3,2262.9,1.1259]
[1725687805336,0.442,2263.0,2262.9,1.1259]
[1725687805529,0.442,2263.0,2262.9,0.3739]
[1725687806027,1.27,2263.1,2262.7,0.7252]
[1725687806231,0.3796,2263.0,2262.7,1.0879]
[1725687806729,0.44202,2262.9,2262.7,1.0879]
[1725687807141,0.82161,2263.0,2262.7,1.0879]
[1725687807438,0.44201,2263.0,2262.7,2.66570381]
[1725687807929,0.44197,2263.2,2262.9,0.44201]
[1725687808633,0.44198,2263.1,2262.9,0.44201]
[1725687808828,0.44198,2263.1,2262.8,1.57777381]
[1725687809228,0.44198,2263.1,2262.8,0.44202]
[1725687810135,0.44198,2263.1,2262.8,1.57777381]
[1725687810427,0.44198,2263.1,2262.8,0.44202]
[1725687812854,0.44197,2263.2,2262.9,0.44201]
[1725687813030,2.45495,2263.3,2263.0,0.44198]
[1725687813224,2.45495,2263.3,2263.1,1.1038]
[1725687813225,0.44196,2263.2,2263.1,1.1038]
[1725687813534,1.71195,2263.3,2263.1,1.1038]
[1725687814235,0.44196,2263.2,2263.1,1.1038]
[1725687814734,1.27,2263.3,2263.1,1.1038]
[1725687814936,0.44196,2263.2,2263.1,1.1038]
[1725687819140,1.71195,2263.3,2263.1,1.54578]
[1725687819532,1.27,2263.3,2263.1,1.1038]
[1725687819739,1.71193,2263.4,2263.2,0.44195]
[1725687819937,1.71193,2263.4,2263.1,1.54576]
[1725687821243,1.71193,2263.4,2263.2,0.44195]
[1725687822341,1.71193,2263.4,2263.1,1.54577]
[1725687822740,1.71193,2263.4,2263.2,0.44196]
[1725687823141,1.71193,2263.4,2263.1,1.1038]